[Event "XXVII RUS-chT Women 2020"]
[Site "Sochi"]
[Date "2020.11.20"]
[Round "2.9"]
[White "Bodnaruk, Anastasia"]
[Black "Shafigullina, Zarina"]
[Result "1-0"]
[ECO "B23"]
[WhiteElo "2414"]
[BlackElo "2302"]
[Annotator "ChessBase"]
[PlyCount "57"]
[EventDate "2020.11.19"]
[EventType "team-tourn"]
[EventCountry "RUS"]
[SourceTitle "playchess.com"]
[Source "ChessBase"]
[SourceQuality "1"]
[TimeControl "40/5400+30:1800+30"]

1. e4 {[%emt 0:00:00]} c5 {[%emt 0:00:00]} 2. Nc3 {[%emt 0:00:00]} d6 {[%emt 0:00:04]} 3. d4 {[%emt 0:00:09]} cxd4 {[%emt 0:00:17]} 4. Qxd4 {[%emt 0:00:04]} Nc6 {[%emt 0:00:19]} 5. Qd2 {[%emt 0:00:05]} g6 {[%emt 0:00:11]} 6. b3 {[%emt 0:00:23]} Bh6 {[%emt 0:00:20]} 7. f4 {[%emt 0:00:33]} Nf6 {[%emt 0:00:10]} 8. Bb2 {[%emt 0:01:30]} O-O {[%emt 0:00:11]} 9. O-O-O {[%emt 0:00:54]} a5 {[%emt 0:00:16]} 10. a4 {[%emt 0:03:01]} Nb4 {[%emt 0:03:18]} 11. Kb1 {[%emt 0:05:48]} e5 {[%emt 0:14:32]} 12. Qxd6 {[%emt 0:12:15]} Qxd6 {[%emt 0:00:17]} 13. Rxd6 {[%emt 0:00:01]} Ng4 {[%emt 0:00:12]} 14. Nh3 {[%emt 0:15:23]} exf4 {[%emt 0:01:02]} 15. Ne2 {[%emt 0:00:19]} Re8 {[%emt 0:06:13]} 16. Nexf4 {[%emt 0:02:30]} Bf8 {[%emt 0:09:41]} 17. Rd4 {[%emt 0:17:58]} Bg7 {[%emt 0:11:35]} 18. Rd2 {[%emt 0:02:30]} Bxb2 {[%emt 0:00:31]} 19. Kxb2 {[%emt 0:00:01]} Rxe4 {[%emt 0:00:35]} 20. Rd8+ {[%emt 0:02:58]} Kg7 {[%emt 0:00:05]} 21. Bb5 {[%emt 0:00:35]} Ne5 {[%emt 0:05:36]} 22. Rf1 {[%emt 0:08:52]} Nec6 {[%emt 0:10:59]} 23. Rd6 {[%emt 0:02:24]} Ne7 {[%emt 0:04:40]} 24. Ng5 {[%emt 0:03:33]} Re5 {[%emt 0:00:08]} 25. Nh5+ {[%emt 0:03:01]} Kh6 {[%emt 0:07:11]} 26. Nxf7+ {[%emt 0:00:19]} Kxh5 {[%emt 0:00:05]} 27. Nxe5 {[%emt 0:00:04]} Bf5 {[%emt 0:00:21]} 28. g4+ {[%emt 0:01:33]} Bxg4 {[%emt 0:00:06]} 29. Rf7 {[%emt 0:00:17]} 1-0

[Event "XXVII RUS-chT Women 2020"]
[Site "Sochi"]
[Date "2020.11.20"]
[Round "2.10"]
[White "Yakimova, Mariya"]
[Black "Ovod, Evgenija"]
[Result "1/2-1/2"]
[ECO "E04"]
[WhiteElo "2244"]
[BlackElo "2338"]
[Annotator "ChessBase"]
[PlyCount "130"]
[EventDate "2020.11.19"]
[EventType "team-tourn"]
[EventCountry "RUS"]
[SourceTitle "playchess.com"]
[Source "ChessBase"]
[SourceQuality "1"]
[TimeControl "40/5400+30:1800+30"]

1. d4 {[%emt 0:00:00]} d5 {[%emt 0:00:00]} 2. c4 {[%emt 0:00:00]} e6 {[%emt 0:00:00]} 3. Nf3 {[%emt 0:00:00]} Nf6 {[%emt 0:00:00]} 4. g3 {[%emt 0:00:00]} dxc4 {[%emt 0:00:00]} 5. Bg2 {[%emt 0:00:00]} c5 {[%emt 0:00:00]} 6. O-O {[%emt 0:00:12]} Nc6 {[%emt 0:00:00]} 7. Ne5 {[%emt 0:00:18]} Bd7 {[%emt 0:00:14]} 8. Na3 {[%emt 0:00:18]} cxd4 {[%emt 0:00:15]} 9. Naxc4 {[%emt 0:00:05]} Bc5 {[%emt 0:00:14]} 10. Qb3 {[%emt 0:01:34]} O-O {[%emt 0:00:12]} 11. Qxb7 {[%emt 0:02:14]} Nxe5 {[%emt 0:00:30]} 12. Nxe5 {[%emt 0:00:03]} Rb8 {[%emt 0:02:01]} 13. Qf3 {[%emt 0:00:06]} Nd5 {[%emt 0:04:48]} 14. Qg4 {[%emt 0:07:56]} Ne7 {[%emt 0:08:38]} 15. Rd1 {[%emt 0:14:34]} Ng6 {[%emt 0:19:30]} 16. Nxd7 {[%emt 0:04:47]} Qxd7 {[%emt 0:00:06]} 17. h4 {[%emt 0:00:41]} f5 {[%emt 0:04:00]} 18. Qg5 {[%emt 0:02:22]} e5 {[%emt 0:08:20]} 19. h5 {[%emt 0:03:25]} h6 {[%emt 0:00:40]} 20. Qd2 {[%emt 0:01:16]} Ne7 {[%emt 0:00:24]} 21. Qa5 {[%emt 0:04:18]} Rfc8 {[%emt 0:11:38]} 22. b3 {[%emt 0:03:53]} Qe6 {[%emt 0:09:42]} 23. Bd2 {[%emt 0:09:55]} Bb6 {[%emt 0:02:16]} 24. Qa4 {[%emt 0:02:02]} Nd5 {[%emt 0:03:11]} 25. Bxd5 {[%emt 0:08:23]} Qxd5 {[%emt 0:00:04]} 26. Rac1 {[%emt 0:00:08]} Kh7 {[%emt 0:06:23]} 27. Qa6 {[%emt 0:07:40]} Rf8 {[%emt 0:10:59]} 28. Qc4 {[%emt 0:06:04]} Qe4 {[%emt 0:00:30]} 29. Bb4 {[%emt 0:02:58]} Rfe8 {[%emt 0:04:15]} 30. a4 {[%emt 0:03:42]} a5 {[%emt 0:02:06]} 31. Bd6 {[%emt 0:00:45]} Rbd8 {[%emt 0:01:44]} 32. Qb5 {[%emt 0:02:58]} Re6 {[%emt 0:00:18]} 33. Bc5 {[%emt 0:04:54]} Bxc5 {[%emt 0:01:33]} 34. Rxc5 {[%emt 0:00:05]} Rde8 {[%emt 0:00:05]} 35. Rc7 {[%emt 0:02:28]} Qg4 {[%emt 0:01:00]} 36. Kg2 {[%emt 0:04:32]} Qxh5 {[%emt 0:00:29]} 37. Rh1 {[%emt 0:00:28]} Qg6 {[%emt 0:00:44]} 38. Qxa5 {[%emt 0:00:59]} f4 {[%emt 0:00:31]} 39. Rh3 {[%emt 0:02:33]} Qe4+ {[%emt 0:00:24]} 40. Kf1 {[%emt 0:00:00]} Qb1+ {[%emt 0:00:00]} 41. Kg2 {[%emt 0:02:04]} Qe4+ {[%emt 0:05:34]} 42. Kf1 {[%emt 0:00:03]} f3 {[%emt 0:05:51]} 43. exf3 {[%emt 0:14:43]} Qxf3 {[%emt 0:00:04]} 44. Qd2 {[%emt 0:06:19]} Qxb3 {[%emt 0:04:39]} 45. a5 {[%emt 0:00:43]} R8e7 {[%emt 0:07:59]} 46. Rc1 {[%emt 0:09:33]} Rf6 {[%emt 0:02:54]} 47. Kg1 {[%emt 0:00:12]} Qd5 {[%emt 0:03:51]} 48. Rh5 {[%emt 0:00:29]} Qf3 {[%emt 0:01:06]} 49. Rh4 {[%emt 0:00:46]} Rg6 {[%emt 0:01:24]} 50. Rh2 {[%emt 0:00:50]} d3 {[%emt 0:02:21]} 51. Re1 {[%emt 0:00:29]} e4 {[%emt 0:00:40]} 52. Re3 {[%emt 0:00:07]} Qf5 {[%emt 0:00:19]} 53. Rh4 {[%emt 0:00:17]} Qg5 {[%emt 0:01:21]} 54. Kh2 {[%emt 0:00:31]} Rc7 {[%emt 0:00:36]} 55. Qe1 {[%emt 0:01:04]} Rf6 {[%emt 0:00:24]} 56. Rexe4 {[%emt 0:00:37]} d2 {[%emt 0:00:14]} 57. Qe2 {[%emt 0:00:27]} Rxf2+ {[%emt 0:00:32]} 58. Qxf2 {[%emt 0:00:04]} d1=Q {[%emt 0:00:05]} 59. Re2 {[%emt 0:00:34]} Rc1 {[%emt 0:00:49]} 60. Qg2 {[%emt 0:00:11]} Qf1 {[%emt 0:00:30]} 61. Qe4+ {[%emt 0:00:11]} Qff5 {[%emt 0:00:47]} 62. Qg2 {[%emt 0:00:17]} Qxh4+ {[%emt 0:00:40]} 63. gxh4 {[%emt 0:00:05]} Qf4+ {[%emt 0:00:03]} 64. Qg3 {[%emt 0:00:18]} Rh1+ {[%emt 0:00:05]} 65. Kg2 {[%emt 0:00:03]} Rg1+ {[%emt 0:00:05]} 1/2-1/2

[Event "XXVII RUS-chT Women 2020"]
[Site "Sochi"]
[Date "2020.11.20"]
[Round "2.11"]
[White "Belenkaya, Dina"]
[Black "Nasyrova, Ekaterina"]
[Result "0-1"]
[ECO "C44"]
[WhiteElo "2283"]
[BlackElo "2261"]
[Annotator "NA"]
[PlyCount "72"]
[EventDate "2020.11.19"]
[EventType "team-tourn"]
[EventCountry "RUS"]
[SourceTitle "playchess.com"]
[Source "ChessBase"]
[SourceQuality "1"]
[TimeControl "40/5400+30:1800+30"]

1. e4 {[%emt 0:00:00]} e5 {[%emt 0:00:00]} 2. Nf3 {[%emt 0:00:00]} Nc6 {[%emt 0:00:00]} 3. d4 {[%emt 0:00:16]} exd4 {[%emt 0:00:06]} 4. Nxd4 {[%emt 0:00:06]} Nf6 {[%emt 0:00:12]} 5. Nc3 $11 {[%emt 0:00:33]} Bb4 {[%emt 0:00:10]} 6. Nxc6 {[%emt 0:00:19]} bxc6 {[%emt 0:00:12]} 7. Bd3 {[%emt 0:00:32]} d5 {[%emt 0:00:19]} 8. exd5 {[%emt 0:07:01]} cxd5 {[%emt 0:00:11]} 9. O-O {[%emt 0:00:28]} O-O {[%emt 0:00:12]} 10. Bg5 {[%emt 0:01:02]} c6 {[%emt 0:00:20]} 11. Qf3 {[%emt 0:00:45]} Be7 {[%emt 0:00:33]} 12. h3 {[%emt 0:02:09]} h6 {[%emt 0:04:09]} 13. Bf4 {[%emt 0:00:14]} Nd7 {[%emt 0:01:00]} 14. Rfe1 {[%emt 0:04:25]} Nc5 {[%emt 0:04:21]} 15. Be5 {[%emt 0:07:23]} Nxd3 {[%emt 0:03:33]} 16. cxd3 {[%emt 0:01:06]} Bd6 {[%emt 0:02:42]} 17. Na4 {[%emt 0:06:38]} Be6 {[%emt 0:15:22]} 18. d4 {[%emt 0:05:50]} Bb4 {[%emt 0:07:08]} 19. Re2 {[%emt 0:02:01]} Re8 {[%emt 0:03:01]} 20. Qg3 {[%emt 0:14:33]} Qg5 {[%emt 0:07:37]} 21. Qb3 {[%emt 0:03:02]} Bf8 {[%emt 0:00:40]} 22. Re3 {[%emt 0:01:00]} f6 {[%emt 0:05:57]} 23. Bg3 {[%emt 0:03:18]} Bf7 {[%emt 0:00:20]} 24. Rae1 {[%emt 0:02:48]} Rxe3 {[%emt 0:03:19]} 25. Rxe3 {[%emt 0:01:12]} c5 {[%emt 0:03:24]} 26. Qb7 {[%emt 0:15:10]} cxd4 {[%emt 0:02:50]} 27. Re1 {[%emt 0:10:44]} Re8 {[%emt 0:00:41]} 28. Rd1 {[%emt 0:04:10]} d3 {[%emt 0:01:36]} 29. h4 {[%emt 0:02:17]} Qg4 {[%emt 0:02:05]} 30. Qb3 {[%emt 0:00:18]} f5 {[%emt 0:00:25]} 31. Bc7 {[%emt 0:01:10]} Qxh4 {[%emt 0:01:20]} 32. Qb5 {[%emt 0:03:32]} d2 {[%emt 0:00:23]} 33. Ba5 {[%emt 0:01:03]} Bd6 {[%emt 0:02:01]} 34. g3 {[%emt 0:01:04]} Bxg3 {[%emt 0:00:22]} 35. fxg3 {[%emt 0:00:21]} Qxg3+ {[%emt 0:00:09]} 36. Kf1 {[%emt 0:00:10]} Qf3+ {[%emt 0:00:08]} 0-1

[Event "XXVII RUS-chT Women 2020"]
[Site "Sochi"]
[Date "2020.11.20"]
[Round "2.12"]
[White "Bulatova, Kamaliya"]
[Black "Chernyak, Viktoria"]
[Result "1/2-1/2"]
[ECO "A06"]
[WhiteElo "2143"]
[BlackElo "2325"]
[Annotator "NA"]
[PlyCount "118"]
[EventDate "2020.11.19"]
[EventType "team-tourn"]
[EventCountry "RUS"]
[SourceTitle "playchess.com"]
[Source "ChessBase"]
[SourceQuality "1"]
[TimeControl "40/5400+30:1800+30"]

1. Nf3 {[%emt 0:00:00]} d5 {[%emt 0:00:08]} 2. b3 {[%emt 0:00:00]} c5 {[%emt 0:01:35]} 3. e3 {[%emt 0:00:11]} Nf6 {[%emt 0:02:14]} 4. Bb2 {[%emt 0:00:25]} Nc6 {[%emt 0:01:59]} 5. Bb5 {[%emt 0:00:22]} Bg4 {[%emt 0:02:06]} 6. h3 {[%emt 0:03:44]} Bh5 {[%emt 0:00:34]} 7. g4 {[%emt 0:15:31]} Bg6 {[%emt 0:00:53]} 8. Bxc6+ {[%emt 0:00:09]} bxc6 {[%emt 0:00:04]} 9. Ne5 {[%emt 0:00:11]} Nd7 {[%emt 0:04:11]} 10. Nxg6 {[%emt 0:03:25]} hxg6 {[%emt 0:00:11]} 11. d3 {[%emt 0:03:23]} e6 {[%emt 0:00:51]} 12. Nd2 {[%emt 0:00:15]} g5 {[%emt 0:07:38]} 13. Nf3 {[%emt 0:01:58]} f6 {[%emt 0:07:45]} 14. Qd2 {[%emt 0:05:30]} Bd6 {[%emt 0:00:45]} 15. O-O-O {[%emt 0:02:00]} Qc7 {[%emt 0:02:56]} 16. h4 {[%emt 0:04:09]} gxh4 {[%emt 0:02:57]} 17. Nxh4 {[%emt 0:02:41]} O-O-O {[%emt 0:05:02]} 18. Ng6 {[%emt 0:04:21]} Rxh1 {[%emt 0:05:45]} 19. Rxh1 {[%emt 0:00:06]} Ne5 {[%emt 0:00:30]} 20. Nxe5 {[%emt 0:00:31]} fxe5 {[%emt 0:01:09]} 21. Kb1 $16 {[%emt 0:03:47]} Rf8 {[%emt 0:04:33]} 22. Qe2 {[%emt 0:11:35]} Qf7 {[%emt 0:02:50]} 23. Rh7 {[%emt 0:11:57]} Qxf2 {[%emt 0:04:30]} 24. Qxf2 {[%emt 0:00:29]} Rxf2 {[%emt 0:00:02]} 25. Rxg7 {[%emt 0:00:50]} Rf1+ {[%emt 0:00:23]} 26. Bc1 {[%emt 0:00:05]} c4 {[%emt 0:00:36]} 27. b4 {[%emt 0:08:46]} c3 {[%emt 0:14:55]} 28. a3 {[%emt 0:03:17]} a5 {[%emt 0:00:50]} 29. g5 {[%emt 0:01:21]} axb4 {[%emt 0:00:21]} 30. g6 {[%emt 0:00:21]} Rg1 {[%emt 0:07:29]} 31. axb4 {[%emt 0:03:00]} Bxb4 {[%emt 0:00:31]} 32. Rg8+ {[%emt 0:00:05]} Kd7 {[%emt 0:03:21]} 33. g7 {[%emt 0:00:26]} Be7 {[%emt 0:01:38]} 34. Ka2 {[%emt 0:02:26]} Bf6 {[%emt 0:00:14]} 35. Ba3 {[%emt 0:00:11]} Rxg7 {[%emt 0:00:29]} 36. Rxg7+ {[%emt 0:00:04]} Bxg7 {[%emt 0:00:03]} 37. Kb3 {[%emt 0:00:12]} d4 {[%emt 0:03:13]} 38. e4 {[%emt 0:00:09]} Bf6 {[%emt 0:00:50]} 39. Bc1 {[%emt 0:01:37]} Be7 {[%emt 0:04:40]} 40. Ka4 {[%emt 0:00:00]} Kc7 {[%emt 0:00:00]} 41. Ka5 {[%emt 0:04:15]} Kb7 {[%emt 0:00:37]} 42. Bh6 {[%emt 0:00:53]} Bd8+ {[%emt 0:00:12]} 43. Kb4 {[%emt 0:00:33]} Kb6 {[%emt 0:00:15]} 44. Bf8 {[%emt 0:01:20]} Bg5 {[%emt 0:04:44]} 45. Bd6 {[%emt 0:01:43]} Bf6 {[%emt 0:00:53]} 46. Bf8 {[%emt 0:07:03]} Kc7 {[%emt 0:01:31]} 47. Ka5 {[%emt 0:02:52]} Kd7 {[%emt 0:00:30]} 48. Kb6 {[%emt 0:00:52]} Bd8+ {[%emt 0:00:16]} 49. Kc5 {[%emt 0:01:55]} Bg5 {[%emt 0:00:52]} 50. Kb6 {[%emt 0:00:57]} Bc1 {[%emt 0:00:59]} 51. Bg7 {[%emt 0:02:13]} Bf4 {[%emt 0:00:10]} 52. Bf8 {[%emt 0:00:05]} Bg5 {[%emt 0:00:44]} 53. Kc5 {[%emt 0:04:47]} Bd8 {[%emt 0:00:22]} 54. Bg7 {[%emt 0:01:17]} Be7+ {[%emt 0:00:20]} 55. Kb6 {[%emt 0:00:50]} Kd6 {[%emt 0:02:28]} 56. Ka5 {[%emt 0:00:33]} Bg5 {[%emt 0:02:10]} 57. Bf8+ {[%emt 0:01:04]} Kd7 {[%emt 0:00:19]} 58. Kb6 {[%emt 0:00:13]} Bd8+ {[%emt 0:00:55]} 59. Kc5 {[%emt 0:00:09]} Bf6 {[%emt 0:02:18]} 1/2-1/2

[Event "XXVII RUS-chT Women 2020"]
[Site "Sochi"]
[Date "2020.11.20"]
[Round "2.13"]
[White "Afonasieva, Anna"]
[Black "Elnikova, Milena"]
[Result "1-0"]
[ECO "A80"]
[WhiteElo "2316"]
[BlackElo "1435"]
[Annotator "ChessBase"]
[PlyCount "69"]
[EventDate "2020.11.19"]
[EventType "team-tourn"]
[EventCountry "RUS"]
[SourceTitle "playchess.com"]
[Source "ChessBase"]
[SourceQuality "1"]
[TimeControl "40/5400+30:1800+30"]

1. d4 {[%emt 0:00:00]} f5 {[%emt 0:00:00]} 2. Nf3 {[%emt 0:00:00]} g6 {[%emt 0:00:00]} 3. g3 {[%emt 0:00:22]} Nf6 {[%emt 0:00:06]} 4. Bg2 {[%emt 0:00:05]} Bg7 {[%emt 0:00:13]} 5. O-O {[%emt 0:00:06]} O-O {[%emt 0:00:28]} 6. b3 {[%emt 0:01:18]} d6 {[%emt 0:00:58]} 7. Bb2 {[%emt 0:00:07]} c6 {[%emt 0:01:53]} 8. c4 {[%emt 0:02:02]} Na6 {[%emt 0:06:10]} 9. Nc3 {[%emt 0:02:23]} Nc7 {[%emt 0:03:16]} 10. Rc1 {[%emt 0:00:43]} h6 {[%emt 0:07:55]} 11. d5 {[%emt 0:02:03]} c5 {[%emt 0:03:45]} 12. Qc2 {[%emt 0:01:41]} Qe8 {[%emt 0:03:35]} 13. a4 {[%emt 0:02:16]} Bd7 {[%emt 0:04:32]} 14. Rfe1 {[%emt 0:02:12]} Qf7 {[%emt 0:02:54]} 15. e4 {[%emt 0:04:59]} fxe4 {[%emt 0:00:37]} 16. Nxe4 {[%emt 0:01:27]} Bf5 {[%emt 0:03:53]} 17. Nh4 {[%emt 0:02:26]} Nxe4 {[%emt 0:00:59]} 18. Bxg7 {[%emt 0:02:19]} Kxg7 {[%emt 0:02:31]} 19. Bxe4 {[%emt 0:00:14]} Bxe4 {[%emt 0:00:54]} 20. Rxe4 {[%emt 0:00:12]} Rg8 {[%emt 0:05:04]} 21. Rce1 {[%emt 0:01:05]} Rae8 {[%emt 0:01:55]} 22. Rf4 {[%emt 0:00:18]} Qxf4 {[%emt 0:04:23]} 23. gxf4 {[%emt 0:00:11]} Kf7 {[%emt 0:05:46]} 24. Kh1 {[%emt 0:00:07]} e6 {[%emt 0:01:52]} 25. dxe6+ {[%emt 0:00:10]} Nxe6 {[%emt 0:00:20]} 26. f5 {[%emt 0:02:09]} Nd4 {[%emt 0:01:48]} 27. fxg6+ {[%emt 0:00:06]} Kf6 {[%emt 0:01:46]} 28. Qc3 {[%emt 0:00:27]} Rxe1+ {[%emt 0:02:05]} 29. Qxe1 {[%emt 0:00:04]} Kg5 {[%emt 0:00:41]} 30. Qe4 {[%emt 0:00:37]} Rg7 {[%emt 0:02:17]} 31. Kg2 {[%emt 0:00:41]} h5 {[%emt 0:02:15]} 32. Kg3 {[%emt 0:01:40]} Kf6 {[%emt 0:01:35]} 33. Qf4+ {[%emt 0:00:37]} Ke7 {[%emt 0:00:28]} 34. Nf5+ {[%emt 0:00:34]} Nxf5+ {[%emt 0:00:03]} 35. Qxf5 {[%emt 0:00:05]} 1-0

[Event "XXVII RUS-chT Women 2020"]
[Site "Sochi"]
[Date "2020.11.20"]
[Round "2.14"]
[White "Gubernatorova, Lyudmila"]
[Black "Semenova, Elena"]
[Result "0-1"]
[ECO "E21"]
[WhiteElo "2200"]
[BlackElo "2299"]
[Annotator "NA"]
[PlyCount "66"]
[EventDate "2020.11.19"]
[EventType "team-tourn"]
[EventCountry "RUS"]
[SourceTitle "playchess.com"]
[Source "ChessBase"]
[SourceQuality "1"]
[TimeControl "40/5400+30:1800+30"]

1. d4 {[%emt 0:00:00]} Nf6 {[%emt 0:00:00]} 2. c4 {[%emt 0:00:00]} e6 {[%emt 0:00:00]} 3. Nf3 {[%emt 0:00:00]} b6 {[%emt 0:00:04]} 4. Nc3 {[%emt 0:00:31]} Bb4 {[%emt 0:00:34]} 5. Bg5 {[%emt 0:00:18]} h6 {[%emt 0:00:32]} 6. Bh4 {[%emt 0:00:07]} g5 {[%emt 0:00:19]} 7. Bg3 {[%emt 0:00:08]} Ne4 {[%emt 0:00:26]} 8. Qc2 {[%emt 0:00:09]} Bxc3+ {[%emt 0:00:44]} 9. bxc3 {[%emt 0:00:11]} Bb7 {[%emt 0:00:07]} 10. e3 {[%emt 0:00:15]} d6 {[%emt 0:00:38]} 11. Bd3 {[%emt 0:01:47]} Nxg3 {[%emt 0:01:27]} 12. fxg3 {[%emt 0:02:25]} g4 {[%emt 0:01:25]} 13. Nh4 {[%emt 0:01:03]} Qg5 {[%emt 0:00:31]} 14. O-O {[%emt 0:00:55]} Qxe3+ {[%emt 0:07:06]} 15. Kh1 {[%emt 0:00:29]} Nd7 {[%emt 0:07:26]} 16. a4 {[%emt 0:16:58]} a5 {[%emt 0:06:52]} 17. Rf4 {[%emt 0:02:41]} (17. c5 $5) 17... O-O-O {[%emt 0:08:07]} 18. Rxg4 {[%emt 0:03:03]} Kb8 {[%emt 0:21:24]} 19. Rf4 {[%emt 0:01:17]} f5 {[%emt 0:07:17]} 20. Raf1 {[%emt 0:07:02]} Bc6 {[%emt 0:03:28]} 21. Qb1 {[%emt 0:00:47]} Qd2 {[%emt 0:02:02]} 22. d5 $17 {[%emt 0:10:29]} (22. Qc2 $15 Qxc2 23. Bxc2) 22... exd5 {[%emt 0:04:44]} 23. Nf3 {[%emt 0:02:00]} Qxc3 {[%emt 0:01:35]} 24. Nd4 {[%emt 0:00:37]} Bb7 {[%emt 0:01:01]} 25. cxd5 Bxd5 {[%emt 0:07:40]} 26. Bxf5 {[%emt 0:06:16]} Nc5 {[%emt 0:03:29]} 27. Qb5 {[%emt 0:02:42]} Ka8 {[%emt 0:05:34]} 28. Nc6 {[%emt 0:18:05]} Rde8 {[%emt 0:01:18]} 29. Bd7 {[%emt 0:02:22]} Re1 {[%emt 0:02:02]} 30. Ne7 {[%emt 0:06:09]} Rxe7 {[%emt 0:01:24]} 31. Bc6+ {[%emt 0:05:40]} Bxc6 {[%emt 0:00:16]} 32. Qxc6+ {[%emt 0:00:05]} Ka7 {[%emt 0:00:15]} 33. h3 {[%emt 0:00:33]} Ne4 {[%emt 0:01:48]} 0-1

[Event "XXVII RUS-chT Women 2020"]
[Site "Sochi"]
[Date "2020.11.20"]
[Round "2.15"]
[White "Vasilevich, Irina"]
[Black "Dorokhina, Elizaveta"]
[Result "1-0"]
[ECO "A25"]
[WhiteElo "2258"]
[BlackElo "1824"]
[Annotator "ChessBase"]
[PlyCount "103"]
[EventDate "2020.11.19"]
[EventType "team-tourn"]
[EventCountry "RUS"]
[SourceTitle "playchess.com"]
[Source "ChessBase"]
[SourceQuality "1"]
[TimeControl "40/5400+30:1800+30"]

1. c4 {[%emt 0:00:00]} e5 {[%emt 0:00:52]} 2. Nc3 {[%emt 0:00:00]} Nc6 {[%emt 0:01:37]} 3. g3 {[%emt 0:00:15]} Nf6 {[%emt 0:02:00]} 4. Bg2 {[%emt 0:00:08]} Bc5 {[%emt 0:01:16]} 5. a3 {[%emt 0:00:57]} a6 {[%emt 0:01:07]} 6. e3 {[%emt 0:00:15]} d6 {[%emt 0:01:28]} 7. Nge2 {[%emt 0:00:10]} O-O {[%emt 0:00:55]} 8. O-O {[%emt 0:00:26]} Bf5 {[%emt 0:04:51]} 9. d4 {[%emt 0:13:02]} Ba7 {[%emt 0:07:36]} 10. b4 {[%emt 0:08:43]} Qd7 {[%emt 0:14:24]} 11. Nd5 {[%emt 0:05:53]} Nxd5 {[%emt 0:12:25]} 12. cxd5 {[%emt 0:00:29]} Ne7 {[%emt 0:02:58]} 13. dxe5 {[%emt 0:00:25]} dxe5 {[%emt 0:00:20]} 14. Bb2 {[%emt 0:00:04]} f6 {[%emt 0:01:10]} 15. Qb3 {[%emt 0:06:30]} Kh8 {[%emt 0:06:25]} 16. Rac1 {[%emt 0:01:53]} Nc8 {[%emt 0:04:00]} 17. Nc3 {[%emt 0:08:06]} Nd6 {[%emt 0:01:49]} 18. Na4 {[%emt 0:02:49]} b5 {[%emt 0:08:21]} 19. Nc5 {[%emt 0:01:06]} Bxc5 {[%emt 0:00:34]} 20. bxc5 {[%emt 0:01:40]} Nc4 {[%emt 0:01:25]} 21. Rfd1 {[%emt 0:03:15]} Bg4 {[%emt 0:05:33]} 22. Rd3 {[%emt 0:09:36]} Rab8 {[%emt 0:01:14]} 23. Rc2 {[%emt 0:10:06]} Rfd8 {[%emt 0:06:59]} 24. Bc1 {[%emt 0:07:53]} Qe7 {[%emt 0:01:17]} 25. c6 {[%emt 0:01:27]} e4 {[%emt 0:07:41]} 26. Rd4 {[%emt 0:00:25]} Bf5 {[%emt 0:00:47]} 27. h3 {[%emt 0:12:58]} Qf7 {[%emt 0:01:36]} 28. Kh2 {[%emt 0:01:31]} Rbc8 {[%emt 0:01:15]} 29. Rcxc4 {[%emt 0:03:22]} bxc4 {[%emt 0:00:18]} 30. Qxc4 {[%emt 0:00:02]} Rb8 {[%emt 0:00:49]} 31. f3 {[%emt 0:01:27]} exf3 {[%emt 0:01:11]} 32. Bxf3 {[%emt 0:00:01]} Bc8 {[%emt 0:00:42]} 33. e4 {[%emt 0:00:24]} g5 {[%emt 0:00:11]} 34. Rd2 {[%emt 0:00:40]} Qe7 {[%emt 0:00:50]} 35. Bb2 {[%emt 0:00:49]} Rxb2 {[%emt 0:00:51]} 36. Rxb2 {[%emt 0:00:02]} Qxa3 {[%emt 0:00:03]} 37. Rf2 {[%emt 0:00:07]} Qe3 {[%emt 0:00:29]} 38. Qf1 {[%emt 0:00:41]} Rd6 {[%emt 0:00:43]} 39. Re2 {[%emt 0:00:53]} Qd4 {[%emt 0:00:41]} 40. e5 {[%emt 0:00:00]} Rd8 {[%emt 0:00:00]} 41. e6 {[%emt 0:05:04]} Re8 {[%emt 0:03:21]} 42. Qb1 {[%emt 0:11:52]} g4 {[%emt 0:11:59]} 43. hxg4 {[%emt 0:00:21]} Qc3 {[%emt 0:03:39]} 44. Be4 {[%emt 0:01:38]} a5 {[%emt 0:00:36]} 45. Kg2 {[%emt 0:07:44]} Ba6 {[%emt 0:02:22]} 46. Qh1 {[%emt 0:01:20]} Re7 {[%emt 0:00:55]} 47. Qh6 {[%emt 0:00:13]} Kg8 {[%emt 0:00:41]} 48. Rf2 {[%emt 0:01:40]} Bd3 {[%emt 0:03:50]} 49. Bxd3 {[%emt 0:02:54]} Qxd3 {[%emt 0:00:02]} 50. Qxf6 {[%emt 0:00:06]} Qxd5+ {[%emt 0:00:11]} 51. Kh2 {[%emt 0:00:04]} Qd8 {[%emt 0:01:22]} 52. Qg5+ {[%emt 0:00:40]} 1-0